[Event "CZE-ch Youth B16 2022"]
[Site "Luhacovice"]
[Date "2022.03.13"]
[Round "2.3"]
[White "Jirasko, Miroslav"]
[Black "Winter, Ondrej"]
[Result "1-0"]
[ECO "B31"]
[WhiteElo "1933"]
[BlackElo "2147"]
[Annotator "ChessBase"]
[PlyCount "99"]
[EventDate "2022.03.12"]
[EventType "swiss"]
[EventCountry "CZE"]
[SourceTitle "playchess.com"]
[Source "ChessBase"]
[SourceQuality "1"]
[TimeControl "40/5400+30:1800+30"]

1. e4 {[%emt 0:00:05]} c5 {[%emt 0:00:10]} 2. Nf3 {[%emt 0:00:05]} Nc6 {[%emt 0:00:04]} 3. Bb5 {[%emt 0:00:05]} g6 {[%emt 0:00:03]} 4. Bxc6 {[%emt 0:00:17]} bxc6 {[%emt 0:00:04]} 5. d4 {[%emt 0:00:07]} Bg7 {[%emt 0:11:01]} 6. dxc5 {[%emt 0:00:49]} Qa5+ {[%emt 0:00:24]} 7. Nbd2 {[%emt 0:00:33]} Ba6 {[%emt 0:10:17]} 8. Rb1 {[%emt 0:04:19]} Qxc5 {[%emt 0:06:44]} 9. c4 {[%emt 0:02:51]} d6 {[%emt 0:18:34]} 10. b4 {[%emt 0:01:35]} Qb6 {[%emt 0:00:56]} 11. O-O {[%emt 0:16:09]} Nh6 {[%emt 0:05:10]} 12. a4 {[%emt 0:06:48]} O-O {[%emt 0:02:08]} 13. Bb2 {[%emt 0:07:36]} Bxb2 {[%emt 0:09:54]} 14. Rxb2 {[%emt 0:00:05]} f5 {[%emt 0:00:29]} 15. e5 {[%emt 0:16:06]} dxe5 {[%emt 0:10:34]} 16. Qb3 {[%emt 0:06:50]} Qc7 {[%emt 0:01:31]} 17. b5 {[%emt 0:05:34]} Bb7 {[%emt 0:03:59]} 18. c5+ {[%emt 0:02:19]} Nf7 {[%emt 0:00:19]} 19. Ng5 {[%emt 0:03:59]} Qd7 {[%emt 0:13:55]} 20. Nxf7 {[%emt 0:03:39]} Rxf7 {[%emt 0:00:14]} 21. Nf3 {[%emt 0:00:10]} Qc7 {[%emt 0:03:51]} 22. Ng5 {[%emt 0:00:13]} Raf8 {[%emt 0:00:01]} 23. b6 {[%emt 0:04:52]} axb6 {[%emt 0:00:26]} 24. Nxf7 Rxf7 {[%emt 0:00:08]} 25. Qxb6 {[%emt 0:00:10]} e6 {[%emt 0:00:27]} 26. Qxc7 {[%emt 0:00:11]} Rxc7 {[%emt 0:00:01]} 27. Rb6 {[%emt 0:00:41]} Bc8 {[%emt 0:01:19]} 28. a5 {[%emt 0:00:41]} Kf7 {[%emt 0:01:13]} 29. a6 {[%emt 0:00:23]} Ke7 {[%emt 0:00:30]} 30. Ra1 {[%emt 0:00:10]} Ra7 {[%emt 0:00:03]} 31. Rxc6 {[%emt 0:00:06]} Kd7 {[%emt 0:00:04]} 32. Rb6 {[%emt 0:01:41]} Kc7 {[%emt 0:00:02]} 33. Kf1 {[%emt 0:00:19]} Bd7 {[%emt 0:00:16]} 34. Ke2 {[%emt 0:08:27]} Bc6 {[%emt 0:00:02]} 35. g3 {[%emt 0:00:06]} Bd5 {[%emt 0:00:55]} 36. f4 {[%emt 0:00:42]} e4 {[%emt 0:00:30]} 37. Ke3 {[%emt 0:00:09]} Bc4 {[%emt 0:01:24]} 38. Kd4 {[%emt 0:00:13]} Bd5 {[%emt 0:00:18]} 39. h4 {[%emt 0:00:36]} h5 {[%emt 0:01:09]} 40. Ra3 {[%emt 0:00:30]} Bc6 {[%emt 0:00:38]} 41. Ke5 {[%emt 0:30:28]} Bd5 {[%emt 0:30:33]} 42. Kf6 {[%emt 0:04:31]} Kd7 {[%emt 0:00:08]} 43. Rd6+ {[%emt 0:01:30]} Ke8 {[%emt 0:00:43]} 44. Kxg6 {[%emt 0:00:23]} Ke7 {[%emt 0:00:01]} 45. Rxd5 {[%emt 0:00:00]} exd5 {[%emt 0:00:00]} 46. Kxf5 {[%emt 0:00:00]} Kd7 {[%emt 0:00:00]} 47. Ke5 {[%emt 0:00:00]} Kc6 {[%emt 0:00:00]} 48. Kd4 {[%emt 0:00:00]} Kb5 {[%emt 0:00:00]} 49. Kxd5 {[%emt 0:00:00]} Kb4 {[%emt 0:00:00]} 50. Re3 {[%emt 0:00:00]} 1-0

[Event "CZE-ch Youth B16 2022"]
[Site "Luhacovice"]
[Date "2022.03.13"]
[Round "2.4"]
[White "Dedek, Jan"]
[Black "Paseka, Matyas"]
[Result "0-1"]
[ECO "E62"]
[WhiteElo "1963"]
[BlackElo "2058"]
[Annotator "NA"]
[PlyCount "60"]
[EventDate "2022.03.12"]
[EventType "swiss"]
[EventCountry "CZE"]
[SourceTitle "playchess.com"]
[Source "ChessBase"]
[SourceQuality "1"]
[TimeControl "40/5400+30:1800+30"]

1. d4 {[%emt 0:00:18]} Nf6 {[%emt 0:00:06]} 2. c4 {[%emt 0:00:07]} g6 {[%emt 0:00:06]} 3. Nf3 {[%emt 0:00:53]} Bg7 {[%emt 0:00:07]} 4. g3 {[%emt 0:00:09]} O-O {[%emt 0:00:07]} 5. Bg2 {[%emt 0:00:04]} d6 {[%emt 0:00:10]} 6. Nc3 {[%emt 0:00:27]} Nc6 {[%emt 0:00:14]} 7. O-O {[%emt 0:00:12]} Bf5 {[%emt 0:00:10]} 8. Nh4 {[%emt 0:13:40]} Bd7 {[%emt 0:00:09]} 9. Nf3 {[%emt 0:00:39]} a6 {[%emt 0:00:26]} 10. h3 {[%emt 0:09:33]} Qc8 {[%emt 0:07:21]} 11. Kh2 {[%emt 0:00:09]} Rb8 {[%emt 0:00:09]} 12. e4 {[%emt 0:03:03]} e5 {[%emt 0:00:29]} 13. Be3 $11 {[%emt 0:03:52]} Re8 {[%emt 0:05:59]} 14. Rc1 {[%emt 0:04:25]} b5 15. cxb5 axb5 {[%emt 0:18:12]} 16. dxe5 {[%emt 0:02:50]} dxe5 {[%emt 0:05:22]} 17. Nd2 {[%emt 0:03:14]} Rd8 {[%emt 0:18:08]} 18. Nd5 {[%emt 0:04:57]} Nxd5 {[%emt 0:01:31]} 19. exd5 {[%emt 0:00:06]} Nd4 {[%emt 0:00:10]} 20. Nb3 {[%emt 0:01:35]} Nf5 {[%emt 0:07:22]} 21. Bc5 {[%emt 0:04:13]} Qa6 {[%emt 0:03:15]} 22. a3 {[%emt 0:00:40]} Nd6 {[%emt 0:13:17]} 23. Bb4 {[%emt 0:04:19]} Qa7 {[%emt 0:01:24]} 24. Qc2 {[%emt 0:04:13]} Nc4 {[%emt 0:01:58]} 25. Nd2 {[%emt 0:03:01]} Bf5 {[%emt 0:00:31]} 26. Qb3 {[%emt 0:03:31]} c5 {[%emt 0:02:13]} 27. Nxc4 {[%emt 0:03:24]} bxc4 {[%emt 0:00:22]} 28. Qe3 {[%emt 0:00:05]} Bd3 {[%emt 0:02:14]} 29. Rfd1 {[%emt 0:01:12]} e4 {[%emt 0:07:52]} 30. Rd2 {[%emt 0:06:12]} Bd4 {[%emt 0:00:18]} 0-1

[Event "CZE-ch Youth B16 2022"]
[Site "Luhacovice"]
[Date "2022.03.13"]
[Round "2.5"]
[White "Janous, Marek"]
[Black "Bezdek, Tomas"]
[Result "1/2-1/2"]
[ECO "B30"]
[WhiteElo "2056"]
[BlackElo "1855"]
[Annotator "NA"]
[PlyCount "101"]
[EventDate "2022.03.12"]
[EventType "swiss"]
[EventCountry "CZE"]
[SourceTitle "playchess.com"]
[Source "ChessBase"]
[SourceQuality "1"]
[TimeControl "40/5400+30:1800+30"]

1. e4 {[%emt 0:00:47]} c5 {[%emt 0:00:08]} 2. Nf3 {[%emt 0:00:12]} Nc6 {[%emt 0:00:07]} 3. Bb5 {[%emt 0:00:33]} Nd4 {[%emt 0:01:15]} 4. Nxd4 {[%emt 0:02:10]} cxd4 {[%emt 0:00:03]} 5. O-O {[%emt 0:04:02]} a6 {[%emt 0:11:30]} 6. Bc4 {[%emt 0:07:44]} e6 {[%emt 0:06:18]} 7. a4 d5 {[%emt 0:00:13]} 8. exd5 {[%emt 0:02:54]} exd5 {[%emt 0:06:32]} 9. Bb3 $11 Bd6 10. Re1+ {[%emt 0:07:02]} Ne7 {[%emt 0:02:21]} 11. d3 {[%emt 0:02:27]} O-O {[%emt 0:01:57]} 12. Bg5 {[%emt 0:00:41]} f6 {[%emt 0:12:52]} 13. Bh4 {[%emt 0:03:28]} Bb4 {[%emt 0:04:33]} 14. c3 {[%emt 0:05:17]} Ba5 {[%emt 0:03:18]} 15. Qf3 {[%emt 0:05:39]} Kh8 {[%emt 0:02:26]} 16. Bg3 {[%emt 0:06:15]} dxc3 {[%emt 0:06:07]} 17. bxc3 {[%emt 0:10:43]} d4 {[%emt 0:00:46]} 18. Rc1 {[%emt 0:04:10]} Qb6 {[%emt 0:04:09]} 19. Qd1 {[%emt 0:02:31]} Nf5 {[%emt 0:06:08]} 20. Bf4 {[%emt 0:08:18]} Re8 {[%emt 0:05:21]} 21. Bd2 {[%emt 0:03:23]} dxc3 {[%emt 0:02:27]} 22. Nxc3 {[%emt 0:03:15]} Nd4 {[%emt 0:12:23]} 23. Rab1 {[%emt 0:08:16]} Qd8 {[%emt 0:00:11]} 24. Be3 {[%emt 0:01:54]} Bf5 {[%emt 0:03:09]} 25. Bc4 {[%emt 0:01:39]} Bxc3 {[%emt 0:02:04]} 26. Rxc3 {[%emt 0:00:07]} Rb8 {[%emt 0:04:02]} 27. h3 {[%emt 0:03:56]} Nc6 {[%emt 0:01:41]} 28. Rcb3 {[%emt 0:00:51]} Qd7 {[%emt 0:00:46]} 29. Bf4 {[%emt 0:00:57]} Ne5 {[%emt 0:01:00]} 30. Bxa6 {[%emt 0:04:46]} Qxa4 {[%emt 0:00:49]} 31. Bxe5 {[%emt 0:00:05]} Rxe5 {[%emt 0:00:32]} 32. Rxb7 {[%emt 0:01:03]} Qxd1+ {[%emt 0:00:29]} 33. Rxd1 {[%emt 0:00:07]} Rxb7 {[%emt 0:00:41]} 34. Bxb7 {[%emt 0:00:08]} Re7 {[%emt 0:00:27]} 35. Bf3 {[%emt 0:01:06]} Rd7 {[%emt 0:00:26]} 36. d4 {[%emt 0:00:05]} Kg8 {[%emt 0:00:09]} 37. d5 {[%emt 0:00:37]} Rd6 {[%emt 0:00:16]} 38. Kf1 {[%emt 0:00:19]} Kf7 {[%emt 0:00:25]} 39. Ke2 {[%emt 0:01:40]} Ke7 {[%emt 0:00:17]} 40. Ra1 {[%emt 0:00:39]} Bd7 {[%emt 0:01:31]} 41. Kd3 {[%emt 0:02:44]} Rb6 {[%emt 0:00:23]} 42. Kc3 {[%emt 0:01:45]} Kd6 {[%emt 0:03:32]} 43. Ra8 {[%emt 0:00:47]} g5 {[%emt 0:03:10]} 44. Rf8 {[%emt 0:03:53]} Ke7 {[%emt 0:00:54]} 45. Rh8 {[%emt 0:00:38]} Bf5 {[%emt 0:00:41]} 46. Ra8 {[%emt 0:01:42]} Kd6 {[%emt 0:02:15]} 47. Kc4 {[%emt 0:01:45]} Rb2 {[%emt 0:04:12]} 48. Ra6+ {[%emt 0:05:37]} Ke5 {[%emt 0:02:00]} 49. Ra5 {[%emt 0:09:54]} Kd6 {[%emt 0:10:46]} 50. Ra6+ {[%emt 0:02:05]} Ke5 {[%emt 0:00:06]} 51. Ra5 {[%emt 0:04:18]} 1/2-1/2

[Event "CZE-ch Youth B16 2022"]
[Site "Luhacovice"]
[Date "2022.03.13"]
[Round "2.6"]
[White "Kubiczek, Michal"]
[Black "Mametev, Artem"]
[Result "1-0"]
[ECO "E97"]
[WhiteElo "1720"]
[BlackElo "1848"]
[Annotator "NA"]
[PlyCount "141"]
[EventDate "2022.03.12"]
[EventType "swiss"]
[EventCountry "CZE"]
[SourceTitle "playchess.com"]
[Source "ChessBase"]
[SourceQuality "1"]
[TimeControl "40/5400+30:1800+30"]

1. d4 {[%emt 0:00:08]} Nf6 {[%emt 0:00:02]} 2. c4 {[%emt 0:00:06]} g6 {[%emt 0:00:03]} 3. Nc3 {[%emt 0:00:14]} Bg7 {[%emt 0:00:03]} 4. e4 {[%emt 0:00:32]} d6 {[%emt 0:00:03]} 5. Nf3 {[%emt 0:00:05]} O-O {[%emt 0:00:06]} 6. Be2 {[%emt 0:00:03]} e5 {[%emt 0:00:09]} 7. O-O {[%emt 0:02:32]} Nc6 {[%emt 0:00:06]} 8. d5 {[%emt 0:00:31]} Ne7 $1 {[%emt 0:00:08]} 9. b4 {[%emt 0:01:15]} Nh5 {[%emt 0:04:55]} 10. g3 {[%emt 0:09:16]} f5 {[%emt 0:04:19]} 11. Ng5 {[%emt 0:01:00]} Nf6 {[%emt 0:00:24]} 12. f3 {[%emt 0:01:44]} c6 {[%emt 0:06:47]} 13. Be3 $11 {[%emt 0:08:40]} Bh6 {[%emt 0:04:40]} 14. Qd2 {[%emt 0:08:41]} cxd5 {[%emt 0:02:50]} 15. Nxd5 {[%emt 0:18:08]} Nexd5 {[%emt 0:01:16]} 16. cxd5 {[%emt 0:05:14]} Nh5 {[%emt 0:06:38]} 17. Ne6 {[%emt 0:01:34]} Bxe3+ {[%emt 0:00:05]} 18. Qxe3 {[%emt 0:00:04]} Bxe6 {[%emt 0:00:22]} 19. dxe6 {[%emt 0:00:01]} f4 {[%emt 0:04:13]} 20. Qb3 {[%emt 0:02:51]} Kh8 {[%emt 0:02:44]} 21. g4 {[%emt 0:04:36]} Ng7 {[%emt 0:01:08]} 22. Kh1 {[%emt 0:01:27]} Qe7 {[%emt 0:01:50]} 23. Bc4 {[%emt 0:02:11]} Rfe8 {[%emt 0:02:57]} 24. Bb5 {[%emt 0:01:57]} Red8 {[%emt 0:14:56]} 25. Bd7 {[%emt 0:01:28]} Ne8 {[%emt 0:00:21]} 26. Rac1 {[%emt 0:00:59]} Nf6 {[%emt 0:02:10]} 27. Rc7 {[%emt 0:01:48]} Nxd7 {[%emt 0:02:36]} 28. Rxb7 {[%emt 0:00:45]} Qe8 {[%emt 0:01:16]} 29. Rxd7 {[%emt 0:01:25]} Rxd7 {[%emt 0:00:07]} 30. exd7 {[%emt 0:00:03]} Qxd7 {[%emt 0:00:10]} 31. Qd5 {[%emt 0:00:23]} Rc8 {[%emt 0:01:18]} 32. Rd1 {[%emt 0:00:28]} Qc6 {[%emt 0:06:43]} 33. Qxd6 {[%emt 0:02:14]} Qxd6 {[%emt 0:00:13]} 34. Rxd6 {[%emt 0:00:01]} Rc1+ {[%emt 0:00:13]} 35. Kg2 {[%emt 0:00:01]} Rc2+ {[%emt 0:00:07]} 36. Kg1 {[%emt 0:00:27]} Rxa2 {[%emt 0:00:16]} 37. Rd5 {[%emt 0:00:09]} Ra1+ {[%emt 0:00:57]} 38. Kg2 {[%emt 0:01:09]} Ra2+ {[%emt 0:00:07]} 39. Kh3 {[%emt 0:00:50]} Ra3 {[%emt 0:01:24]} 40. g5 {[%emt 0:02:36]} Rxf3+ {[%emt 0:05:31]} 41. Kg4 {[%emt 0:32:13]} Rb3 {[%emt 0:31:41]} 42. b5 {[%emt 0:04:19]} Rb2 {[%emt 0:06:27]} 43. Rxe5 {[%emt 0:00:57]} Rxh2 {[%emt 0:00:06]} 44. Re8+ {[%emt 0:00:27]} Kg7 {[%emt 0:01:36]} 45. Re7+ {[%emt 0:00:07]} Kf8 {[%emt 0:00:28]} 46. Rxa7 {[%emt 0:00:05]} Rb2 {[%emt 0:04:31]} 47. Rb7 {[%emt 0:00:51]} Ke8 {[%emt 0:01:35]} 48. b6 {[%emt 0:02:02]} Kd8 {[%emt 0:01:55]} 49. Rb8+ {[%emt 0:00:53]} Kd7 {[%emt 0:00:08]} 50. Kxf4 {[%emt 0:01:33]} Rb5 {[%emt 0:00:32]} 51. Rb7+ {[%emt 0:03:58]} Kc8 {[%emt 0:02:43]} 52. Rxh7 {[%emt 0:00:46]} Rxb6 {[%emt 0:00:23]} 53. Rf7 {[%emt 0:00:30]} Kd8 {[%emt 0:01:37]} 54. Rf6 {[%emt 0:00:06]} Rb1 {[%emt 0:00:06]} 55. Rxg6 {[%emt 0:00:43]} Ke7 {[%emt 0:00:05]} 56. Kf5 {[%emt 0:00:26]} Rf1+ {[%emt 0:02:10]} 57. Ke5 {[%emt 0:00:35]} Rg1 {[%emt 0:00:49]} 58. Rg7+ {[%emt 0:00:51]} Kf8 {[%emt 0:00:05]} 59. Kf6 {[%emt 0:00:29]} Rf1+ {[%emt 0:03:14]} 60. Kg6 {[%emt 0:00:08]} Rf4 {[%emt 0:01:42]} 61. e5 {[%emt 0:00:50]} Re4 {[%emt 0:00:34]} 62. Rf7+ {[%emt 0:02:00]} Ke8 {[%emt 0:00:16]} 63. Kg7 {[%emt 0:02:07]} Rxe5 {[%emt 0:00:44]} 64. g6 {[%emt 0:00:18]} Re1 {[%emt 0:00:54]} 65. Kg8 {[%emt 0:00:20]} Rg1 {[%emt 0:00:32]} 66. g7 {[%emt 0:00:25]} Ra1 {[%emt 0:01:48]} 67. Rf2 {[%emt 0:01:00]} Ke7 {[%emt 0:01:21]} 68. Rg2 {[%emt 0:04:03]} Kf6 {[%emt 0:00:18]} 69. Rb2 {[%emt 0:01:01]} Rc1 {[%emt 0:00:00]} 70. Rb6+ {[%emt 0:00:00]} Ke7 {[%emt 0:00:00]} 71. Kh7 1-0

[Event "CZE-ch Youth B16 2022"]
[Site "Luhacovice"]
[Date "2022.03.13"]
[Round "2.8"]
[White "Zezula, Jakub"]
[Black "Oborny, Stanislav"]
[Result "0-1"]
[ECO "C42"]
[WhiteElo "1891"]
[BlackElo "1674"]
[Annotator "NA"]
[PlyCount "62"]
[EventDate "2022.03.12"]
[EventType "swiss"]
[EventCountry "CZE"]
[SourceTitle "playchess.com"]
[Source "ChessBase"]
[SourceQuality "1"]
[TimeControl "40/5400+30:1800+30"]

1. e4 {[%emt 0:00:06]} e5 {[%emt 0:00:21]} 2. Nf3 {[%emt 0:00:30]} Nf6 {[%emt 0:02:00]} 3. Nxe5 {[%emt 0:01:13]} d6 {[%emt 0:00:09]} 4. Nf3 {[%emt 0:00:04]} Nxe4 {[%emt 0:00:08]} 5. d4 {[%emt 0:00:31]} d5 {[%emt 0:02:50]} 6. Bd3 {[%emt 0:00:31]} Nc6 {[%emt 0:07:13]} 7. O-O {[%emt 0:02:00]} Be7 {[%emt 0:04:17]} 8. Re1 {[%emt 0:05:22]} Bf5 $14 {[%emt 0:02:51]} 9. Nc3 {[%emt 0:18:00]} Nxc3 {[%emt 0:02:41]} 10. bxc3 {[%emt 0:00:01]} Bxd3 {[%emt 0:10:18]} 11. Qxd3 {[%emt 0:02:37]} O-O {[%emt 0:00:28]} 12. Rb1 {[%emt 0:01:32]} b6 {[%emt 0:04:34]} 13. Qf5 {[%emt 0:06:44]} h6 {[%emt 0:17:04]} 14. Rb5 {[%emt 0:06:57]} Bd6 {[%emt 0:05:40]} 15. Qg4 {[%emt 0:16:12]} Kh8 {[%emt 0:03:04]} 16. Qh5 {[%emt 0:02:08]} Ne7 {[%emt 0:05:56]} 17. Bxh6 {[%emt 0:01:50]} Kg8 {[%emt 0:04:58]} 18. Bd2 {[%emt 0:09:14]} Qd7 {[%emt 0:02:33]} 19. Ng5 {[%emt 0:09:23]} Qf5 {[%emt 0:00:49]} 20. g4 {[%emt 0:05:29]} Qg6 {[%emt 0:09:14]} 21. Qh4 {[%emt 0:02:48]} f6 {[%emt 0:03:43]} 22. Ne6 {[%emt 0:02:07]} Qxc2 {[%emt 0:02:17]} 23. Nxf8 {[%emt 0:00:38]} Qxd2 {[%emt 0:00:11]} 24. Rxe7 {[%emt 0:00:23]} Bxe7 {[%emt 0:01:01]} 25. Ng6 {[%emt 0:00:57]} Qe1+ {[%emt 0:00:12]} 26. Kg2 {[%emt 0:00:51]} Qe4+ {[%emt 0:00:06]} 27. f3 {[%emt 0:00:16]} Qxg6 {[%emt 0:00:26]} 28. Rxd5 {[%emt 0:00:04]} Qc2+ {[%emt 0:01:39]} 29. Kh3 {[%emt 0:00:57]} Bd6 {[%emt 0:01:08]} 30. Rxd6 {[%emt 0:00:20]} cxd6 {[%emt 0:00:08]} 31. Kg3 {[%emt 0:00:05]} Qxc3 {[%emt 0:00:38]} 0-1

[Event "CZE-ch Youth B16 2022"]
[Site "Luhacovice"]
[Date "2022.03.13"]
[Round "2.9"]
[White "Zrubek, Adam"]
[Black "Pelc, Adam"]
[Result "1/2-1/2"]
[ECO "B34"]
[WhiteElo "1661"]
[BlackElo "1811"]
[Annotator "NA"]
[PlyCount "89"]
[EventDate "2022.03.12"]
[EventType "swiss"]
[EventCountry "CZE"]
[SourceTitle "playchess.com"]
[Source "ChessBase"]
[SourceQuality "1"]
[TimeControl "40/5400+30:1800+30"]

1. e4 {[%emt 0:00:03]} c5 {[%emt 0:00:18]} 2. Nf3 {[%emt 0:00:16]} Nc6 {[%emt 0:00:33]} 3. d4 {[%emt 0:00:40]} cxd4 {[%emt 0:00:10]} 4. Nxd4 {[%emt 0:00:30]} Nf6 $11 {[%emt 0:00:45]} 5. Nc3 {[%emt 0:05:37]} e5 {[%emt 0:01:51]} 6. Ndb5 {[%emt 0:01:05]} d6 {[%emt 0:00:22]} 7. Nd5 {[%emt 0:00:30]} Nxd5 {[%emt 0:02:10]} 8. exd5 {[%emt 0:00:25]} Ne7 {[%emt 0:01:40]} 9. c4 {[%emt 0:01:38]} Ng6 {[%emt 0:06:29]} 10. Bd3 {[%emt 0:05:38]} Be7 {[%emt 0:03:45]} 11. O-O {[%emt 0:02:19]} O-O {[%emt 0:04:00]} 12. Kh1 {[%emt 0:16:21]} a6 {[%emt 0:02:31]} 13. Nc3 {[%emt 0:00:25]} f5 {[%emt 0:00:17]} 14. f4 {[%emt 0:03:48]} e4 {[%emt 0:05:41]} 15. Be2 {[%emt 0:06:58]} Bf6 {[%emt 0:01:54]} 16. Be3 {[%emt 0:01:32]} b6 {[%emt 0:08:15]} 17. Bd4 {[%emt 0:04:42]} Rb8 {[%emt 0:01:59]} 18. b4 {[%emt 0:04:45]} Bd7 {[%emt 0:18:13]} 19. Rc1 {[%emt 0:03:15]} Rc8 {[%emt 0:14:50]} 20. Qd2 {[%emt 0:05:24]} a5 {[%emt 0:05:45]} 21. a3 {[%emt 0:05:30]} Re8 {[%emt 0:04:56]} 22. Qe3 {[%emt 0:03:43]} Bxd4 {[%emt 0:00:27]} 23. Qxd4 {[%emt 0:00:28]} axb4 {[%emt 0:00:57]} 24. axb4 {[%emt 0:01:19]} Qc7 {[%emt 0:00:19]} 25. g3 {[%emt 0:07:14]} Ra8 {[%emt 0:03:43]} 26. Ra1 {[%emt 0:02:36]} Ne7 {[%emt 0:01:52]} 27. Rfc1 {[%emt 0:03:50]} Rec8 {[%emt 0:00:43]} 28. Nd1 {[%emt 0:02:52]} Qb7 {[%emt 0:02:12]} 29. Ne3 {[%emt 0:02:11]} Rxa1 {[%emt 0:03:40]} 30. Rxa1 {[%emt 0:00:33]} Ra8 {[%emt 0:00:58]} 31. Kg2 {[%emt 0:06:35]} Rxa1 {[%emt 0:00:36]} 32. Qxa1 {[%emt 0:00:09]} b5 {[%emt 0:01:08]} 33. Qa5 {[%emt 0:03:20]} Kf7 {[%emt 0:01:57]} 34. Kf2 {[%emt 0:00:40]} bxc4 {[%emt 0:00:50]} 35. Bxc4 {[%emt 0:00:26]} Nc8 {[%emt 0:00:36]} 36. b5 {[%emt 0:00:33]} Nb6 {[%emt 0:00:20]} 37. Bb3 {[%emt 0:00:27]} Ke7 {[%emt 0:00:52]} 38. Qc3 {[%emt 0:00:32]} Kf7 {[%emt 0:00:10]} 39. Qb4 {[%emt 0:00:30]} Qc7 {[%emt 0:00:44]} 40. Nc4 {[%emt 0:00:31]} Nxc4 {[%emt 0:00:41]} 41. Bxc4 {[%emt 0:03:15]} Qb6+ {[%emt 0:01:43]} 42. Kg2 {[%emt 0:02:30]} h6 {[%emt 0:00:51]} 43. Qa3 {[%emt 0:04:03]} Qc7 {[%emt 0:21:14]} 44. Qb3 {[%emt 0:02:39]} Qb6 {[%emt 0:01:50]} 45. Qa3 {[%emt 0:00:37]} 1/2-1/2

[Event "CZE-ch Youth B16 2022"]
[Site "Luhacovice"]
[Date "2022.03.13"]
[Round "2.10"]
[White "Stejskal, Michal"]
[Black "Vasinek, Martin"]
[Result "1-0"]
[ECO "B07"]
[WhiteElo "1857"]
[BlackElo "1594"]
[Annotator "NA"]
[PlyCount "119"]
[EventDate "2022.03.12"]
[EventType "swiss"]
[EventCountry "CZE"]
[SourceTitle "playchess.com"]
[Source "ChessBase"]
[SourceQuality "1"]
[TimeControl "40/5400+30:1800+30"]

1. d4 {[%emt 0:00:03]} Nf6 {[%emt 0:00:07]} 2. Nc3 {[%emt 0:00:08]} g6 {[%emt 0:00:28]} 3. e4 {[%emt 0:00:07]} d6 {[%emt 0:00:40]} 4. Bg5 {[%emt 0:00:22]} Bg7 {[%emt 0:01:03]} 5. e5 {[%emt 0:01:37]} dxe5 {[%emt 0:03:33]} 6. dxe5 {[%emt 0:00:07]} Qxd1+ {[%emt 0:08:15]} 7. Rxd1 {[%emt 0:00:08]} Nfd7 {[%emt 0:08:42]} 8. Nd5 {[%emt 0:04:48]} Bxe5 {[%emt 0:00:44]} 9. Nf3 {[%emt 0:00:09]} e6 $14 {[%emt 0:03:46]} 10. Nxe5 {[%emt 0:19:15]} exd5 {[%emt 0:00:24]} 11. Rxd5 {[%emt 0:01:13]} O-O {[%emt 0:16:33]} 12. Nf3 {[%emt 0:11:47]} Re8+ {[%emt 0:12:43]} 13. Kd1 {[%emt 0:06:33]} f6 {[%emt 0:03:46]} 14. Be3 {[%emt 0:07:39]} Nb6 {[%emt 0:03:35]} 15. Rd2 {[%emt 0:04:31]} Bg4 {[%emt 0:05:49]} 16. Be2 {[%emt 0:02:33]} Nc6 {[%emt 0:01:00]} 17. Kc1 {[%emt 0:06:59]} Rad8 {[%emt 0:03:51]} 18. Rhd1 {[%emt 0:02:30]} Rxd2 {[%emt 0:05:05]} 19. Rxd2 {[%emt 0:00:57]} Nb4 {[%emt 0:03:02]} 20. Bxb6 {[%emt 0:06:53]} axb6 {[%emt 0:00:47]} 21. Bc4+ {[%emt 0:01:27]} Kg7 {[%emt 0:03:01]} 22. c3 {[%emt 0:04:08]} Nc6 {[%emt 0:00:32]} 23. Bb5 {[%emt 0:01:10]} Bxf3 {[%emt 0:01:57]} 24. gxf3 {[%emt 0:00:08]} Re7 {[%emt 0:00:16]} 25. Bxc6 {[%emt 0:01:22]} bxc6 {[%emt 0:00:01]} 26. Kd1 {[%emt 0:00:15]} f5 {[%emt 0:00:43]} 27. a4 {[%emt 0:01:37]} c5 {[%emt 0:01:58]} 28. b4 {[%emt 0:02:48]} cxb4 {[%emt 0:00:13]} 29. cxb4 {[%emt 0:00:06]} c5 {[%emt 0:00:30]} 30. bxc5 {[%emt 0:01:43]} bxc5 {[%emt 0:00:15]} 31. Kc2 {[%emt 0:00:44]} Ra7 {[%emt 0:01:10]} 32. Kb3 {[%emt 0:00:08]} Kf7 {[%emt 0:00:20]} 33. Rd5 {[%emt 0:01:36]} Ra5 {[%emt 0:01:53]} 34. Rd7+ {[%emt 0:00:09]} Kg8 {[%emt 0:00:19]} 35. f4 {[%emt 0:00:56]} h5 {[%emt 0:01:01]} 36. Rb7 {[%emt 0:00:40]} Ra8 {[%emt 0:02:30]} 37. Rb5 {[%emt 0:01:31]} c4+ {[%emt 0:00:17]} 38. Kb4 {[%emt 0:00:09]} Rc8 {[%emt 0:00:20]} 39. Kc3 {[%emt 0:00:47]} Re8 {[%emt 0:00:43]} 40. Rb2 {[%emt 0:00:43]} Ra8 {[%emt 0:03:25]} 41. Ra2 {[%emt 0:30:08]} Kf7 {[%emt 0:30:38]} 42. a5 {[%emt 0:00:11]} Ke6 {[%emt 0:00:15]} 43. Kxc4 {[%emt 0:00:10]} Kd6 {[%emt 0:00:07]} 44. a6 {[%emt 0:00:55]} Kc6 {[%emt 0:00:07]} 45. a7 {[%emt 0:00:13]} Kb7 {[%emt 0:00:37]} 46. Kd5 {[%emt 0:00:21]} Rd8+ {[%emt 0:00:22]} 47. Ke5 {[%emt 0:00:11]} Ka8 {[%emt 0:00:21]} 48. h4 {[%emt 0:01:31]} Rd1 {[%emt 0:00:40]} 49. Ra6 {[%emt 0:01:53]} Rg1 {[%emt 0:00:51]} 50. f3 {[%emt 0:02:34]} Rg3 {[%emt 0:00:28]} 51. Ra3 {[%emt 0:00:47]} Rh3 {[%emt 0:01:34]} 52. Kf6 {[%emt 0:02:33]} Rxh4 {[%emt 0:00:00]} 53. Kg5 {[%emt 0:00:00]} Rh1 {[%emt 0:00:00]} 54. Kxg6 {[%emt 0:00:00]} h4 {[%emt 0:00:00]} 55. Kxf5 {[%emt 0:00:00]} Rg1 {[%emt 0:00:00]} 56. Ra2 {[%emt 0:00:00]} Rg3 {[%emt 0:00:00]} 57. Ke4 {[%emt 0:00:00]} Rg7 {[%emt 0:00:00]} 58. f5 {[%emt 0:00:00]} h3 {[%emt 0:00:00]} 59. f6 {[%emt 0:00:00]} Rxa7 {[%emt 0:00:00]} 60. f7 {[%emt 0:00:00]} 1-0